bitfinex-derivatives/quotes_ETHF0:USTF0_20250828
["timestamp","ask_amount","ask_price","bid_price","bid_amount"]
[1756396955765,0.99909,4503.5,4501.8,0.39977]
[1756396955766,2.8572,4501.9,4501.8,0.39977]
[1756396956260,1.2347,4502.3,4502.2,0.50694]
[1756396956460,3.1036,4502.3,4502.2,0.57394]
[1756396956666,1.8689,4502.3,4502.2,0.57394]
[1756396957264,1.8689,4504.8,4502.2,4.067]
[1756396957565,1.10768958,4504.7,4503.1,0.1742]
[1756396957755,0.39959,4503.9,4503.5,1.2788]
[1756396957961,1.2347,4503.6,4503.1,2.25906]
[1756396958161,1.2347,4503.6,4503.4,0.39963]
[1756396958361,0.39952,4504.7,4503.5,1.8594]
[1756396958561,1.39226953,4503.9,4503.8,3.5378]
[1756396958964,1.2347,4503.9,4503.8,3.5378]
[1756396959163,1.2347,4504.0,4503.9,1.2788]
[1756396959364,1.2347,4504.0,4503.4,43.05903]
[1756396959566,1.8689,4504.1,4503.4,41.19963]
[1756396959870,1.8689,4504.0,4503.4,41.19963]
[1756396960067,3.1036,4503.3,4503.2,0.39964]
[1756396960467,3.1036,4503.1,4502.1,0.99938]
[1756396960668,1.8689,4502.9,4502.1,0.99938]
[1756396960864,3.1036,4502.5,4502.4,0.39971]
[1756396961261,3.1036,4502.5,4501.5,0.99949]
[1756396961262,1.8689,4502.4,4502.3,0.39973]
[1756396961464,1.2347,4503.1,4502.4,0.99931]
[1756396961669,3.1036,4503.5,4503.4,0.39963]
[1756396961867,3.1036,4503.5,4503.4,1.67843]
[1756396962371,0.9986,4505.7,4504.2,0.39956]
[1756396962572,1.2347,4504.3,4504.2,3.53776]
[1756396962771,1.39226953,4504.3,4504.2,3.53776]
[1756396962976,1.2347,4504.3,4504.2,4.43640483]
[1756396963373,1.2347,4504.3,4504.2,3.32871525]
[1756396963572,1.2347,4504.3,4504.2,3.72827525]
[1756396964172,1.2347,4505.3,4505.2,0.39947]
[1756396964370,1.8689,4505.7,4505.6,1.8594]
[1756396964576,1.2347,4505.7,4505.5,0.39944]
[1756396964772,4.21128958,4505.6,4505.5,0.39944]
[1756396965078,1.39226953,4505.6,4505.3,0.39946]
[1756396965275,1.39226953,4505.6,4505.2,1.8594]
[1756396965276,3.1036,4504.9,4504.4,2.25894]
[1756396965471,3.1036,4504.6,4504.2,1.29819483]
[1756396965671,3.1036,4504.4,4504.3,2.25895]
[1756396965876,3.1036,4504.4,4503.5,0.99905]
[1756396965877,3.1036,4504.3,4504.2,1.67836]
[1756396966170,3.1036,4504.7,4504.6,3.53772]
[1756396966367,3.26116953,4504.7,4504.6,3.53772]
[1756396966567,3.1036,4504.7,4504.6,2.43003042]
[1756396966765,3.1036,4504.7,4504.6,2.82955042]
[1756396967278,1.2347,4505.0,4504.9,1.6783]
[1756396967573,1.39226953,4505.0,4504.9,3.5377]
[1756396967772,1.2347,4505.0,4504.9,3.5377]
[1756396967970,3.1036,4505.0,4504.4,0.39954]
[1756396968167,1.2347,4504.3,4504.1,31.986]
[1756396968372,2.02646953,4504.2,4504.1,31.986]
[1756396968772,1.8689,4504.2,4504.1,31.986]
[1756396969574,1.8689,4504.2,4504.1,30.87831042]
[1756396969770,1.9968,4506.6,4504.4,0.39954]
[1756396969981,1.2347,4504.5,4504.4,3.53774]
[1756396970180,0.15756953,4504.8,4504.7,1.2788]
[1756396970375,0.99843,4506.4,4504.3,0.99888]
[1756396970376,3.1036,4505.0,4504.9,0.3995]
[1756396970779,1.8689,4504.9,4504.8,2.2589]
[1756396970979,3.1036,4504.9,4504.8,3.5377]
[1756396971370,3.1036,4504.9,4504.8,3.1382]
[1756396972080,3.1036,4504.6,4504.5,1.8594]
[1756396972282,0.15756953,4504.9,4504.8,1.2788]
[1756396972469,1.2347,4505.0,4504.1,30.87831042]
[1756396972674,1.2347,4505.0,4504.9,3.1382]
[1756396972875,1.8689,4505.3,4505.1,0.39948]
[1756396973075,3.1036,4505.2,4505.1,0.39948]
[1756396973271,3.1036,4504.8,4504.7,1.67832]
[1756396973473,1.8689,4504.7,4504.3,0.39955]
[1756396973679,3.1036,4504.4,4504.3,1.2788]
[1756396974179,1.8689,4505.5,4504.3,1.8594]
[1756396974378,1.8689,4505.5,4504.9,0.3995]
[1756396974573,3.1036,4505.0,4504.9,3.5377]
[1756396975176,1.2347,4505.0,4504.7,0.39951]
[1756396975377,1.2347,4504.8,4504.7,0.39951]
[1756396975681,1.2347,4504.8,4504.2,0.99891]
[1756396976475,1.2347,4504.8,4504.7,0.39951]
[1756396976681,3.1036,4504.8,4504.7,0.39951]
[1756396977683,1.2347,4504.8,4504.7,3.53771]
[1756396977884,0.39944,4505.7,4504.4,0.99886]
[1756396978184,1.2347,4505.0,4504.9,3.5377]
[1756396978381,3.1036,4505.0,4504.1,30.87831042]
[1756396978579,1.2347,4504.7,4504.6,0.75171042]
[1756396978885,1.2347,4504.7,4504.1,30.87831042]
[1756396978886,3.26116953,4504.2,4504.1,30.87831042]
[1756396979278,4.21128958,4504.2,4504.1,30.87831042]
[1756396981393,3.1036,4504.2,4504.1,32.73771042]
[1756396981695,3.1036,4504.2,4504.1,31.63002084]
[1756396982093,1.8689,4504.7,4504.3,0.39955]
[1756396982293,0.15756953,4504.5,4504.3,2.25895]
[1756396982486,1.8689,4504.4,4504.3,3.53775]
[1756396982687,1.8689,4504.4,4504.1,29.77062084]
[1756396982688,2.86741,4506.0,4504.6,1.8594]
[1756396982890,0.15756953,4505.2,4504.6,1.8594]
[1756396983092,0.15756953,4505.2,4505.0,0.39949]
[1756396983292,1.2347,4505.2,4505.1,1.2788]
[1756396983491,1.8689,4505.6,4505.2,0.39947]
[1756396983691,3.26116953,4505.3,4505.2,0.39947]
[1756396983988,3.26116953,4505.3,4505.0,0.39949]
[1756396984291,1.2347,4505.1,4505.0,0.39949]
[1756396984496,3.1036,4505.1,4505.0,0.39949]
[1756396984695,3.1036,4505.1,4505.0,0.57060042]
[1756396984894,3.1036,4505.1,4505.0,0.97009042]
[1756396985097,3.1036,4505.1,4505.0,2.59589042]
[1756396985997,1.10768958,4505.3,4504.6,0.99881]
[1756396985998,1.10768958,4505.3,4505.2,1.293]
[1756396986195,3.1893,4505.3,4505.2,3.0011]
[1756396986499,4.45455911,4505.3,4505.2,3.0011]
[1756396986897,4.45455911,4505.3,4505.2,1.293]
[1756396987099,2.49255911,4505.3,4504.9,0.39949]
[1756396987396,3.1893,4505.0,4504.9,0.39949]
[1756396987698,3.1893,4505.0,4504.9,2.29290042]
[1756396987900,3.1893,4505.0,4504.9,0.58480042]
[1756396988197,3.1893,4505.0,4504.9,1.98419042]
[1756396988590,1.2273,4505.5,4504.9,0.9999]
[1756396988795,1.38486953,4505.3,4505.2,1.293]
[1756396988996,3.34686953,4505.3,4505.2,1.293]
[1756396989196,4.45455911,4505.3,4505.2,1.293]
[1756396989396,4.45455911,4505.3,4504.2,0.9999]
[1756396989397,1.962,4505.2,4504.2,0.9999]
[1756396989596,1.962,4505.2,4504.6,0.39952]
[1756396989795,3.34686953,4504.7,4504.6,0.39952]
[1756396989994,1.2273,4504.5,4504.4,0.39954]
[1756396990301,3.1893,4504.5,4504.4,1.69254]
[1756396990703,3.1893,4504.5,4504.1,29.77062084]
[1756396990704,3.1893,4504.5,4504.1,28.66293126]
[1756396991005,3.1893,4504.2,4504.1,28.66293126]
[1756396991698,3.58886,4504.2,4504.1,28.66293126]
[1756396991892,3.1893,4504.2,4504.1,28.66293126]
[1756396992092,4.29698958,4504.2,4504.1,28.66293126]
[1756396993903,4.29698958,4504.2,4504.1,27.55524168]
[1756396996905,4.29698958,4504.2,4504.1,26.4475521]
[1756396997099,0.39951,4504.9,4504.1,27.4530521]
[1756396997300,3.1893,4504.6,4504.5,2.69803]
[1756396997800,3.34686953,4504.6,4504.5,2.69803]
[1756396998198,3.34686953,4504.6,4504.5,0.39953]
[1756396998507,3.1893,4504.4,4504.3,0.39955]
[1756396998708,3.1893,4504.4,4504.3,2.69805]
[1756396999104,0.99844,4506.4,4504.1,26.4475521]
[1756396999105,1.962,4505.1,4504.5,0.39953]
[1756396999302,3.34686953,4504.8,4504.7,1.293]
[1756396999707,3.1893,4504.8,4504.2,1.0055]
[1756396999906,1.962,4504.7,4504.1,26.34536252]
[1756397000109,3.1893,4504.2,4504.1,26.34536252]
[1756397001208,0.39951,4504.8,4504.2,0.39956]
[1756397001407,1.99698,4506.2,4504.1,26.34536252]
[1756397001408,1.962,4504.6,4504.3,0.39955]
[1756397001608,1.962,4504.6,4504.4,0.39954]
[1756397002311,1.962,4504.5,4504.3,0.39955]
[1756397002500,1.962,4504.6,4504.2,0.39955]
[1756397002705,1.962,4504.2,4504.1,26.34536252]
[1756397002905,1.962,4504.2,4504.1,25.23767294]
[1756397003507,1.2273,4504.5,4504.4,0.39954]
[1756397003711,3.1893,4504.5,4504.4,0.39954]
[1756397003905,3.34686953,4504.5,4504.4,0.39954]
[1756397005310,3.34686953,4504.5,4504.1,25.23767294]
[1756397005311,3.1893,4504.3,4504.2,0.39956]
[1756397005914,1.2273,4504.3,4504.1,24.52954336]
[1756397006114,1.962,4504.2,4504.1,24.92911336]
[1756397006413,3.1893,4504.2,4504.1,24.92911336]
[1756397008113,3.1893,4504.2,4504.1,24.52954336]
[1756397008512,3.1893,4504.2,4504.1,24.92911336]
[1756397009014,3.1893,4504.2,4504.1,23.82142378]
[1756397010105,3.1893,4504.2,4504.1,23.42185378]
[1756397011915,4.29698958,4504.2,4504.1,23.42185378]
[1756397012115,4.29698958,4504.2,4504.1,22.7137342]
[1756397013618,0.99856,4505.8,4504.6,0.39952]
[1756397013812,0.39951,4504.8,4504.2,0.39955]
[1756397014017,1.38486953,4504.4,4504.3,0.39955]
[1756397014217,3.1893,4504.4,4504.1,0.39957]
[1756397014519,3.1893,4504.1,4504.0,0.39958]
[1756397014815,3.1893,4504.1,4503.6,0.86976798]
[1756397015017,1.2273,4503.3,4503.0,33.25209262]
[1756397015211,0.99888,4504.4,4503.0,31.26895042]
[1756397015212,3.1893,4503.2,4503.0,31.26895042]
[1756397015414,1.962,4503.1,4503.0,31.26895042]
[1756397015615,2.11956953,4503.1,4503.0,31.26895042]
[1756397016805,3.22725911,4503.1,4503.0,31.26895042]
[1756397017810,0.99877,4504.9,4503.0,31.29085042]
[1756397018016,3.682,4505.7,4503.6,0.43461]
[1756397018017,3.2576,4503.7,4503.6,0.43461]
[1756397018216,3.41516953,4503.9,4503.8,0.3996]
[1756397018617,1.9711,4503.8,4503.6,0.39961]
[1756397018816,1.2865,4503.3,4503.2,0.39964]
[1756397019020,1.9711,4503.4,4503.3,0.39964]
[1756397019716,0.39955,4504.3,4503.7,0.3996]
[1756397019915,0.15756953,4503.7,4503.6,0.39961]
[1756397020221,1.9711,4504.2,4504.0,0.39957]
[1756397020410,0.15756953,4504.2,4504.0,0.39957]
[1756397020610,0.15756953,4504.2,4503.3,0.99911]
[1756397020611,3.2576,4504.6,4504.3,0.39955]
[1756397020815,3.2576,4504.5,4504.3,0.39955]
[1756397021010,3.41516953,4504.5,4504.1,0.39956]
[1756397021217,1.9711,4504.4,4503.3,41.79911]
[1756397021413,1.2865,4504.4,4504.1,0.39956]
[1756397021617,1.9711,4504.3,4504.1,0.39956]
[1756397022220,1.2865,4504.3,4504.1,0.39956]
[1756397022520,3.2576,4504.2,4504.1,0.39956]
[1756397022721,1.2865,4504.2,4504.0,0.39958]
[1756397022921,3.2576,4504.1,4504.0,0.39958]
[1756397023322,1.9711,4504.0,4503.3,41.79911]
[1756397023522,3.2576,4504.0,4503.9,0.39958]
[1756397024122,3.2576,4504.0,4503.4,0.99908]
[1756397024523,0.87619055,4507.1,4504.0,1.9409]
[1756397024820,1.2865,4505.1,4505.0,1.70009]
[1756397025027,1.2865,4505.1,4505.0,3.64099]
[1756397025226,1.44406953,4505.1,4505.0,3.2415]
[1756397026828,3.41516953,4505.1,4505.0,3.2415]
[1756397027322,2.37047,4506.4,4505.0,1.9409]
[1756397027626,0.15756953,4505.2,4505.1,3.64098]
[1756397027822,1.2865,4505.6,4505.5,0.39944]
[1756397028126,3.2576,4505.6,4505.5,1.70004]
[1756397028327,3.41516953,4505.6,4505.5,1.3006]
[1756397028824,3.41516953,4505.6,4505.5,3.2415]
[1756397029020,3.2576,4506.0,4505.9,1.3006]
[1756397029226,1.5519613,4509.3,4507.2,0.39929]
[1756397029526,1.2865,4507.3,4507.2,1.69989]
[1756397029822,1.10768958,4508.2,4507.2,4.13350574]
[1756397030022,0.15756953,4507.4,4507.3,1.69988]
[1756397030224,0.15756953,4507.4,4507.3,2.53309042]
[1756397030524,2.39418958,4507.4,4506.0,1.6051]
[1756397030721,1.10768958,4507.4,4507.3,1.3006]
[1756397030918,0.39917,4508.7,4507.4,1.6051]
[1756397031125,1.10768958,4508.2,4507.4,1.6051]
[1756397031322,2.12866953,4507.7,4507.6,2.9057]
[1756397031523,3.41516953,4507.7,4507.6,2.9057]
[1756397031728,4.36528958,4507.7,4507.2,1.6051]
[1756397031932,1.2865,4507.4,4507.3,2.9057]
[1756397032232,3.2576,4507.4,4507.3,2.9057]
[1756397032420,1.10768958,4507.4,4507.3,2.9057]
[1756397032617,1.2865,4507.4,4507.3,2.9057]
[1756397032821,3.2576,4507.4,4507.3,2.9057]
[1756397033325,3.2576,4507.4,4507.3,1.79801042]
[1756397033527,0.01252,4508.3,4507.3,2.19729042]
[1756397033827,0.15756953,4507.5,4507.3,1.69988]
[1756397034023,4.36528958,4508.2,4508.1,0.7959]
[1756397034326,0.39904,4510.1,4508.8,0.39915]
[1756397034528,0.39906,4509.9,4508.9,0.39914]
[1756397034826,0.15756953,4509.0,4508.9,1.69974]
[1756397035128,1.44406953,4509.0,4508.9,1.3006]
[1756397035324,1.44406953,4509.0,4508.7,0.39916]
[1756397035527,0.00332731,4509.9,4508.7,0.39916]
[1756397035528,1.44406953,4508.8,4508.7,1.27301513]
[1756397035723,1.44406953,4508.8,4508.7,0.87385513]
[1756397035924,2.55175911,4508.8,4508.5,2.34008]
[1756397036128,0.15756953,4508.7,4508.6,3.64067]
[1756397036327,3.41516953,4508.7,4508.6,2.53298042]
[1756397036523,3.2576,4508.7,4508.6,2.93215042]
[1756397036726,1.9711,4509.8,4509.0,1.3006]
[1756397036925,1.9711,4509.6,4509.0,1.3006]
[1756397037229,0.15756953,4509.1,4509.0,1.69974]
[1756397037631,1.9711,4509.6,4508.5,0.87492038]
[1756397037830,1.2865,4509.3,4509.2,1.3006]
[1756397038025,3.2576,4509.3,4509.2,1.3006]
[1756397038220,4.52285911,4509.3,4509.2,1.3006]
[1756397039431,4.52285911,4509.3,4509.2,0.19291042]
[1756397039927,4.52285911,4509.3,4508.5,0.87100244]
[1756397040124,3.2576,4508.7,4508.5,0.39918]
[1756397040331,3.2576,4508.4,4508.3,0.6523]
[1756397040525,1.9711,4508.3,4508.2,32.83722099]
[1756397041329,1.9711,4508.3,4508.2,33.48952099]
[1756397041530,1.9711,4509.6,4508.2,33.48952099]
[1756397041731,3.41516953,4508.4,4508.3,1.696]
[1756397042033,0.15756953,4508.5,4508.3,1.696]
[1756397042228,1.9711,4509.2,4508.8,1.44285]
[1756397042532,0.15756953,4509.0,4508.8,0.39915]
[1756397042828,3.2576,4508.9,4508.2,32.78100141]
[1756397043029,1.9711,4508.8,4508.7,0.39916]
[1756397043428,0.39909,4509.6,4508.8,0.39915]
[1756397043633,0.15756953,4509.0,4508.7,0.39916]
[1756397044133,1.2865,4508.6,4508.5,0.39918]
[1756397044329,3.2576,4508.6,4508.5,0.39918]
[1756397045833,0.39907,4509.8,4508.5,0.39918]
[1756397045834,1.9711,4509.8,4509.4,0.3991]
[1756397046029,3.28066953,4509.5,4509.4,0.1914]
[1756397046424,4.38835911,4509.5,4509.4,0.1178]
[1756397047028,3.1231,4509.5,4509.4,0.1914]
[1756397047229,1.8236,4509.5,4509.4,0.1914]
[1756397047831,3.1231,4509.5,4509.4,0.1914]
[1756397048433,0.00332731,4509.9,4509.8,2.04991042]
[1756397048731,0.1,4510.2,4510.1,3.55664]
[1756397048937,0.39893,4511.4,4510.5,0.399]
[1756397049134,0.15756953,4510.7,4510.6,1.2456]
[1756397049437,1.2995,4510.7,4510.6,3.1576]
[1756397049639,1.2995,4511.1,4511.0,3.1576]
[1756397050034,2.40718958,4511.1,4511.0,3.1576]
[1756397050539,4.23078958,4511.1,4511.0,3.1576]
[1756397051138,4.38835911,4511.1,4510.2,1.91532731]
[1756397051339,1.2995,4510.3,4510.2,3.16092731]
[1756397051641,3.1231,4510.0,4509.9,33.65147215]
[1756397052038,4.38835911,4510.0,4509.9,30.84563773]
[1756397053244,4.38835911,4510.0,4509.9,32.75763773]
[1756397053444,1.26525911,4510.0,4509.9,32.75763773]
[1756397053941,3.08885911,4510.0,4509.9,32.75763773]
[1756397054543,3.08885911,4510.0,4509.9,31.64994815]
[1756397054738,1.8236,4511.6,4509.9,31.64994815]
[1756397054944,0.39896,4511.0,4510.0,0.39904]
[1756397055141,0.15756953,4510.2,4510.1,1.64464]
[1756397055341,3.28066953,4510.2,4510.1,1.2456]
[1756397055536,1.8236,4510.1,4509.9,29.73794815]
[1756397055741,3.28066953,4510.0,4509.9,29.73794815]
[1756397056142,4.38835911,4510.0,4509.9,29.73794815]
[1756397057643,4.38835911,4510.0,4509.9,28.63025857]
[1756397058245,4.23078958,4510.0,4509.9,28.63025857]
[1756397058445,4.38835911,4510.0,4509.9,28.63025857]
[1756397058943,2.40718958,4510.0,4509.9,30.54225857]
[1756397059144,4.23078958,4510.0,4509.9,30.54225857]
[1756397059353,0.399,4510.7,4510.2,0.39903]
[1756397059547,1.8236,4510.5,4510.3,1.912]
[1756397059752,1.8236,4510.6,4510.3,1.912]
[1756397059946,1.10768958,4510.6,4510.2,0.39903]
[1756397060254,1.8236,4510.4,4510.3,3.1576]
[1756397060650,1.8236,4510.4,4510.3,2.04991042]
[1756397060951,2.93128958,4510.6,4510.3,1.64463]
[1756397061149,1.2995,4511.4,4510.3,4.0]
[1756397061356,3.1231,4511.4,4511.3,1.2456]
[1756397061649,0.39892,4511.6,4510.8,0.39898]
[1756397061949,1.2995,4510.9,4510.6,0.39899]
[1756397062151,0.39898,4510.9,4510.2,0.39903]
[1756397062346,0.00522745,4511.7,4509.9,28.63025857]
[1756397062347,1.8236,4510.2,4509.9,28.63025857]
[1756397062542,1.8236,4510.2,4510.1,1.64464]
[1756397062753,1.8236,4511.1,4510.1,1.0072]
[1756397063049,1.8236,4511.5,4511.1,1.0072]
[1756397063247,3.1231,4511.3,4511.2,1.2456]
[1756397063450,3.1231,4511.3,4511.2,2.2528]
[1756397063748,1.8236,4511.5,4511.2,1.14511042]
[1756397063942,1.2995,4511.3,4510.9,0.39897]
[1756397064146,0.15756953,4511.1,4510.9,0.39897]
[1756397064347,1.8236,4511.4,4511.0,0.39896]
[1756397064647,1.98116953,4511.3,4511.1,0.39895]
[1756397065148,1.8236,4511.3,4511.1,0.39895]
[1756397065348,0.00522745,4511.7,4511.4,0.39893]
[1756397065543,1.8236,4511.5,4511.4,0.39893]
[1756397065743,1.26525911,4511.6,4511.0,0.39896]
[1756397065949,1.2995,4511.1,4511.0,0.39896]
[1756397066154,3.1231,4511.1,4510.1,0.99762]
[1756397066353,3.1231,4511.0,4510.9,0.39898]
[1756397066649,0.15756953,4511.4,4510.2,0.9976]
[1756397066951,1.2995,4511.0,4510.1,0.99762]
[1756397067153,1.8236,4511.3,4509.9,28.85332309]
[1756397067451,3.1231,4511.0,4509.9,28.63025857]
[1756397067652,1.8236,4511.0,4510.1,0.99763]
[1756397067842,0.15756953,4510.9,4510.7,0.39899]
[1756397068050,1.8236,4511.0,4510.7,0.39899]
[1756397068249,1.8236,4510.9,4510.7,0.39899]
[1756397068448,1.10768958,4511.0,4510.8,0.39898]
[1756397068646,1.10768958,4511.0,4510.8,0.39605841]
[1756397068847,1.26525911,4510.9,4509.9,28.85074171]
[1756397069043,1.10768958,4511.6,4509.9,28.85074171]
[1756397069247,1.8236,4510.7,4510.3,0.39902]
[1756397069551,3.1231,4510.2,4509.9,28.63025857]
[1756397069748,1.8236,4510.1,4509.9,27.92161899]
[1756397069942,1.8236,4510.1,4510.0,0.39905]
[1756397070149,0.39896,4511.2,4510.3,0.39903]
[1756397070347,2.22256,4511.1,4510.3,0.39903]
[1756397070547,0.39895,4511.3,4509.9,28.91927899]
[1756397070749,0.39897,4511.0,4509.9,27.92161899]
[1756397070946,0.15756953,4510.6,4510.2,0.39903]
[1756397071153,1.8236,4510.2,4510.0,0.39905]
[1756397071354,3.1231,4510.1,4510.0,0.39905]
[1756397072249,1.8236,4510.0,4509.9,27.92161899]
[1756397072650,3.08885911,4510.0,4509.9,27.92161899]
[1756397072950,1.2995,4508.2,4508.1,31.935]
[1756397073252,3.1231,4508.1,4508.0,0.90831266]
[1756397073449,0.39914,4509.1,4508.0,2.55314266]
[1756397073648,0.15756953,4508.5,4508.1,0.39922]
[1756397073950,0.15756953,4508.2,4507.7,0.39926]
[1756397074146,1.2995,4507.9,4507.7,0.86511037]
[1756397074347,0.15756953,4508.2,4507.7,0.39926]
[1756397074552,1.8236,4507.7,4507.4,1.29614893]
[1756397074751,0.15756953,4507.8,4507.3,0.39929]
[1756397074953,2.22281,4508.3,4507.4,0.39928]
[1756397075255,2.22281,4508.3,4507.4,1.30040706]
[1756397075446,0.15756953,4507.8,4507.4,1.30040706]
[1756397075649,0.15756953,4507.8,4507.4,2.12810706]
[1756397075852,1.2995,4507.5,4507.4,0.62113748]
[1756397076055,1.2995,4507.5,4507.2,0.3993]
[1756397076257,1.9213,4507.4,4507.2,0.3993]
[1756397076457,1.9213,4507.4,4507.3,1.0659]
[1756397076749,1.9213,4508.3,4507.4,0.39929]
[1756397076954,1.9213,4507.7,4507.4,0.39929]
[1756397077551,0.3992,4508.4,4507.5,0.39927]
[1756397077757,1.9213,4507.7,4507.5,0.39927]
[1756397077951,1.9213,4507.7,4507.5,0.6662]
[1756397078156,1.3681,4507.4,4507.3,0.89699352]
[1756397078359,3.2894,4507.4,4507.2,0.3993]
[1756397078557,3.2894,4507.4,4507.3,1.0659]
[1756397078857,0.39919,4508.6,4507.3,0.62441042]
[1756397079056,0.39919,4508.6,4507.2,0.87045472]
[1756397079057,1.9213,4507.6,4507.2,0.87045472]
[1756397079260,0.99761,4510.2,4508.6,0.39918]
[1756397079457,0.99754,4510.5,4507.1,1.99656]
[1756397079458,1.9213,4509.5,4508.0,0.99809]
[1756397079658,2.07886953,4509.0,4508.8,0.39916]
[1756397079956,0.15756953,4509.0,4508.8,0.39916]
[1756397080157,3.2894,4508.9,4508.8,0.39916]
[1756397080553,0.99761,4510.3,4508.3,40.8]
[1756397080554,3.2894,4508.4,4508.3,40.8]
[1756397080752,3.44696953,4508.4,4508.3,0.39921]
[1756397080951,1.9213,4508.4,4508.3,0.39921]
[1756397081154,2.32042,4509.4,4508.6,0.39917]
[1756397081356,3.44696953,4508.7,4508.6,0.39917]
[1756397081861,3.44696953,4508.7,4507.8,40.8]
[1756397082260,0.39908,4509.8,4508.9,0.39915]
[1756397082455,1.9213,4509.7,4508.9,0.39915]
[1756397082656,2.07886953,4509.0,4508.9,0.39915]
[1756397082852,3.2894,4509.0,4508.9,0.39915]
[1756397083051,1.9213,4509.6,4509.5,0.3991]
[1756397083853,1.3681,4510.0,4509.9,0.39906]
[1756397084056,3.2894,4510.0,4509.9,0.39906]
[1756397084456,1.3681,4509.8,4509.7,0.39908]
[1756397084763,3.2894,4509.8,4509.7,0.39908]
[1756397084963,3.2894,4509.8,4508.7,0.99793]
[1756397085165,3.2894,4509.8,4508.8,0.22176999]
[1756397085763,3.2894,4509.8,4509.6,0.39909]
[1756397086164,1.9213,4509.7,4509.6,0.39909]
[1756397086556,0.39899,4510.8,4509.2,40.8]
[1756397086862,3.2894,4510.1,4510.0,0.39906]
[1756397087058,1.9213,4510.1,4510.0,0.39906]
[1756397087259,1.3681,4510.6,4510.5,0.39901]
[1756397087459,1.52566953,4510.6,4510.5,0.39901]
[1756397087964,1.52566953,4510.6,4510.0,0.77112042]
[1756397088166,1.3681,4510.5,4510.0,0.89970693]
[1756397088356,3.2894,4510.5,4510.4,0.39902]
[1756397089663,1.9213,4510.4,4510.3,0.39903]
[1756397089962,3.2894,4510.4,4510.3,0.39903]
[1756397090755,3.2894,4510.4,4510.3,2.40393]
[1756397090962,3.2894,4510.4,4510.3,1.29624042]
[1756397091468,3.2894,4510.4,4510.3,1.69527042]
[1756397091663,1.3681,4511.2,4511.1,0.39896]
[1756397091862,1.52566953,4511.2,4511.1,1.76016]
[1756397092066,1.3681,4511.2,4511.1,3.79066]
[1756397092566,1.3681,4511.6,4511.5,1.76012]
[1756397093065,1.3681,4511.6,4511.5,3.79062]
[1756397093259,1.52566953,4511.6,4511.5,3.79062]
[1756397093659,3.44696953,4511.6,4511.5,3.79062]
[1756397094072,3.44696953,4511.6,4511.5,2.68293042]
[1756397094871,0.15756953,4511.6,4511.5,3.08185042]
[1756397095064,3.44696953,4511.6,4511.5,3.08185042]
[1756397095260,3.44696953,4511.6,4511.5,1.05135042]
[1756397095766,3.44696953,4511.6,4511.5,0.39892]
[1756397096168,3.44696953,4511.6,4511.5,1.76012]
[1756397096866,3.44696953,4511.6,4511.5,0.39892]
[1756397097068,1.3681,4511.2,4510.8,40.8]
[1756397097263,3.2894,4511.0,4510.9,0.39898]
[1756397097464,1.9213,4510.9,4510.2,1.80715458]
[1756397097664,1.3681,4510.4,4510.3,1.76023]
[1756397098076,3.2894,4510.4,4510.3,1.76023]
[1756397098370,0.00522745,4511.7,4510.3,2.35879]
[1756397098673,1.9213,4511.6,4510.3,0.99759]
[1756397098870,2.07886953,4511.0,4510.9,1.3612]
[1756397099072,2.07886953,4511.0,4510.9,3.2955]
[1756397099274,3.2894,4511.0,4510.9,3.69448]
[1756397099572,3.2894,4511.0,4510.9,1.76018]
[1756397099772,3.2894,4511.0,4510.9,3.69448]
[1756397100069,3.2894,4511.0,4510.5,1.22560042]
[1756397100473,3.2894,4511.0,4510.8,0.39898]
[1756397100674,3.2894,4510.9,4510.8,1.76018]
[1756397102570,3.2894,4510.9,4510.8,2.98578]
[1756397103075,3.2894,4510.9,4510.8,1.87809042]
[1756397103276,0.00522745,4511.7,4510.8,1.87809042]
[1756397103473,1.99393,4513.2,4510.8,1.87809042]
[1756397103474,0.99686,4513.6,4511.4,1.8099]
[1756397103775,1.3681,4511.6,4511.5,0.39892]
[1756397103975,3.2894,4511.6,4511.5,0.39892]
[1756397104478,3.44696953,4511.6,4511.5,0.39892]
[1756397104978,1.52566953,4511.6,4511.0,40.8]
[1756397105175,0.99707,4512.7,4510.9,0.39897]
[1756397105176,3.44696953,4511.1,4510.9,0.39897]
[1756397105375,3.44696953,4511.0,4510.9,0.39897]
[1756397105572,3.44696953,4511.0,4510.2,1.58476991]
[1756397105776,3.2894,4510.2,4510.1,34.14995]
[1756397106171,3.2894,4510.2,4510.1,33.04226042]
[1756397106373,3.2894,4510.2,4510.1,31.23236042]
[1756397106575,3.2894,4510.2,4510.1,30.83331042]
[1756397107473,1.3832,4511.0,4510.2,1.8902]
[1756397107678,1.3832,4511.4,4511.3,0.39894]
[1756397107872,1.3832,4511.4,4511.2,0.39895]
[1756397108278,1.3832,4511.4,4511.2,2.41985]
[1756397108473,1.54076953,4511.3,4510.8,2.0209]
[1756397108679,1.3832,4511.3,4510.8,0.39899]
[1756397108981,0.15756953,4510.9,4510.5,2.0209]
[1756397109178,1.3832,4510.6,4510.2,0.91321042]
[1756397109476,1.9799,4512.0,4510.4,0.99756]
[1756397109682,3.3631,4511.2,4511.1,0.39896]
[1756397109982,0.99694,4513.3,4511.6,0.39891]
[1756397110278,3.682,4514.1,4511.6,3.3064]
[1756397110279,1.54076953,4511.7,4511.6,3.3064]
[1756397110777,1.3832,4511.7,4511.6,3.3064]
[1756397111081,0.99691,4513.4,4511.6,2.0209]
[1756397111082,1.3832,4512.0,4511.6,2.0209]
[1756397111281,1.54076953,4511.8,4511.7,3.3064]
[1756397111575,1.3832,4511.9,4511.8,1.6844]
[1756397111780,1.3832,4511.9,4511.8,3.7053]
[1756397111977,1.3832,4511.9,4511.1,0.99739]
[1756397111978,3.0195,4511.9,4511.6,0.39891]
[1756397112275,0.99691,4513.4,4511.9,0.39889]